bitfinex/quotes_SOLUSD_20251212
["timestamp","ask_amount","ask_price","bid_price","bid_amount"]
[1765575998337,9.47994492,132.03,132.01,3.34073901]
[1765575999242,16.38455482,132.02,132.01,3.34073901]
[1765575999830,16.38455482,132.02,132.01,3.34305862]
[1765576000740,16.38455482,132.02,132.0,0.68]
[1765576000942,16.38455482,132.02,132.01,3.34305862]
[1765576003045,17.05455482,132.02,132.01,3.34305862]
[1765576003255,16.38455482,132.02,132.01,3.34305862]
[1765576004859,16.38455482,132.02,132.01,4.02305862]
[1765576006054,16.38455482,132.02,132.01,3.34305862]
[1765576009673,17.05455482,132.02,132.0,62.2]
[1765576009976,0.67,132.01,132.0,65.54305862]
[1765576010134,17.05455482,132.02,132.0,65.54305862]
[1765576010334,17.05455482,132.02,132.0,62.2]
[1765576010335,8.80994492,132.01,132.0,62.2]
[1765576010650,8.80994492,132.01,131.99,3.34305862]
[1765576010651,9.50994492,132.01,131.98,3.34305862]
[1765576010853,8.80994492,131.99,131.98,3.34305862]
[1765576011064,8.80994492,131.99,131.98,62.2]
[1765576011860,16.38627646,131.99,131.97,17.07014982]
[1765576012563,17.08627646,131.99,131.97,17.07014982]
[1765576012975,16.38627646,131.99,131.97,17.07014982]
[1765576013141,16.38627646,131.99,131.98,0.68]
[1765576013336,8.80994492,131.99,131.98,0.68]
[1765576013549,8.80994492,131.99,131.98,4.02305862]
[1765576015956,8.80994492,131.99,131.98,66.22305862]
[1765576022182,9.0,132.03,131.98,73.79996421]
[1765576022390,8.3,132.03,132.01,3.34305862]
[1765576022781,8.3,132.03,132.01,4.02305862]
[1765576023289,15.87410523,132.03,132.01,4.02305862]
[1765576023596,15.87410523,132.03,132.02,3.34305862]
[1765576023597,24.68405015,132.03,132.02,3.34305862]
[1765576025463,24.68405015,132.03,132.02,4.02305862]
[1765576025664,24.68405015,132.03,132.02,3.34305862]
[1765576030076,24.68405015,132.03,132.02,4.02305862]
[1765576031195,24.68405015,132.03,132.02,3.34305862]
[1765576031888,24.68405015,132.03,132.02,4.02305862]
[1765576032085,24.68405015,132.03,132.02,3.34305862]
[1765576032392,15.8740362,132.03,132.02,4.02305862]
[1765576032574,7.5740362,132.03,132.02,4.02305862]
[1765576032977,16.38363016,132.04,132.02,4.02305862]
[1765576033176,17.08363016,132.04,132.02,4.02305862]
[1765576033778,17.08363016,132.04,132.02,66.22305862]
[1765576033996,17.08363016,132.04,132.02,62.88]
[1765576034197,17.08363016,132.04,132.02,66.22204364]
[1765576034579,17.08363016,132.04,132.02,65.54204364]
[1765576034980,17.08363016,132.04,132.02,66.22204364]
[1765576038932,7.57368524,132.04,132.03,4.01204364]
[1765576039826,7.57368524,132.04,132.03,3.34204364]
[1765576042022,7.57368524,132.04,132.03,4.05204364]
[1765576042226,7.57368524,132.04,132.03,3.34204364]
[1765576042715,7.57368524,132.04,132.03,66.25204364]
[1765576043221,15.9729931,132.05,132.03,66.25204364]
[1765576043427,0.1,132.05,132.04,4.05204364]
[1765576043617,0.1,132.05,132.04,66.25204364]
[1765576046805,0.1,132.05,132.04,73.82550622]
[1765576047014,0.1,132.05,132.04,11.62550622]
[1765576048812,0.1,132.05,132.04,19.92550622]
[1765576051631,0.1,132.05,132.04,82.12550622]
[1765576052931,0.1,132.05,132.04,74.55204364]
[1765576053523,0.1,132.05,132.04,66.25204364]
[1765576054032,0.1,132.05,132.04,68.12965125]
[1765576054628,0.1,132.05,132.04,62.91]
[1765576054839,0.1,132.05,132.04,68.12965125]
[1765576056012,0.1,132.05,132.04,67.41965125]
[1765576056450,0.1,132.05,132.04,68.12965125]
[1765576062049,0.1,132.05,132.04,62.91]
[1765576062228,0.1,132.05,132.04,67.41965125]
[1765576063326,0.1,132.05,132.04,68.12965125]
[1765576069335,0.1,132.05,132.04,68.13024491]
[1765576076746,0.1,132.05,132.04,67.42024491]
[1765576076954,0.1,132.05,132.04,68.10024491]
[1765576080050,0.1,132.05,132.04,75.67370749]
[1765576081060,0.1,132.05,132.04,68.10024491]
[1765576084669,0.1,132.05,132.04,75.67370749]
[1765576090265,0.1,132.05,132.04,83.97370749]
[1765576092044,0.1,132.07,132.05,62.1]
[1765576092241,0.1,132.07,132.06,26.56733611]
[1765576092446,0.1,132.08,132.06,26.56733611]
[1765576092447,0.1,132.08,132.06,92.37867255]
[1765576092770,0.1,132.08,132.07,11.12048982]
[1765576093285,0.1,132.09,132.07,74.26198718]
[1765576093454,0.1,132.11,132.1,5.22024491]
[1765576094074,0.1,132.11,132.1,5.90024491]
[1765576094446,0.1,132.11,132.1,13.47026762]
[1765576097170,0.1,132.11,132.1,21.77026762]
[1765576098996,0.1,132.11,132.09,18.26733611]
[1765576098997,0.8,132.11,132.09,20.61743894]
[1765576099155,0.1,132.11,132.1,5.22024491]
[1765576099758,0.8,132.11,132.1,5.22024491]
[1765576101180,8.3694497,132.11,132.1,5.22024491]
[1765576101362,17.17939462,132.11,132.1,5.22024491]
[1765576102780,17.17939462,132.11,132.1,5.21630338]
[1765576103182,0.8,132.11,132.1,5.21630338]
[1765576103492,0.1,132.11,132.1,5.21630338]
[1765576103783,0.1,132.11,132.1,5.87630338]
[1765576104192,0.1,132.11,132.1,5.21630338]
[1765576105167,0.1,132.11,132.1,67.97630338]
[1765576105880,0.1,132.11,132.1,75.54632609]
[1765576111663,0.72,132.16,132.1,96.89341729]
[1765576111867,17.09684711,132.16,132.15,5.21630338]
[1765576112880,0.72,132.16,132.15,5.21630338]
[1765576113386,8.2866815,132.16,132.15,5.21630338]
[1765576115905,8.80994492,132.15,132.12,3.33736485]
[1765576116202,9.52994492,132.15,132.12,65.43736485]
[1765576116406,0.72,132.14,132.12,65.43736485]
[1765576116779,9.52994492,132.14,132.13,3.33736485]
[1765576116978,17.09767611,132.14,132.13,3.33736485]
[1765576117699,17.09767611,132.14,132.12,62.1]
[1765576117908,16.37767611,132.14,132.13,3.33736485]
[1765576121096,17.09767611,132.14,132.13,3.33736485]
[1765576122786,16.37767611,132.14,132.13,3.33736485]
[1765576122986,17.09767611,132.14,132.13,3.33736485]
[1765576125913,16.37767611,132.14,132.13,3.33736485]
[1765576131420,17.06767611,132.14,132.13,3.33736485]
[1765576135725,9.49994492,132.14,132.13,3.33736485]
[1765576136627,0.69,132.14,132.13,3.33677249]
[1765576137503,0.69,132.14,132.12,69.66870358]
[1765576137704,0.69,132.14,132.13,3.33677249]
[1765576143650,0.69,132.14,132.13,65.43677249]
[1765576147546,16.55716003,132.15,132.13,65.43677249]
[1765576148024,0.69,132.14,132.13,65.43677249]
[1765576151446,15.86716003,132.15,132.13,65.43677249]
[1765576151646,25.36710495,132.15,132.14,3.33677249]
[1765576152051,8.80994492,132.14,132.13,62.1]
[1765576152362,9.49994492,132.14,132.13,62.1]
[1765576152559,9.49994492,132.14,132.11,3.33677249]
[1765576152737,16.37882169,132.12,132.11,3.33677249]
[1765576153152,17.06882169,132.12,132.11,3.33677249]
[1765576155048,8.80994492,132.12,132.11,3.33677249]
[1765576155372,8.3,132.13,132.11,11.56618108]
[1765576155541,8.3,132.13,132.12,3.99677249]
[1765576155745,8.3,132.15,132.12,66.09677249]
[1765576155949,17.79994492,132.15,132.14,3.33677249]
[1765576156539,25.36710345,132.15,132.14,3.33677249]
[1765576157561,25.36710345,132.15,132.13,3.33677249]
[1765576157856,0.69,132.14,132.13,3.33677249]
[1765576158465,25.36710345,132.15,132.12,66.09677249]
[1765576168751,25.36710345,132.15,132.13,3.33677249]
[1765576169167,25.36710345,132.15,132.13,4.01677249]
[1765576170166,25.36710345,132.15,132.13,4.01694064]
[1765576171573,25.36710345,132.15,132.13,0.68]
[1765576171759,25.36710345,132.15,132.13,4.01694064]
[1765576173167,25.36710345,132.15,132.13,0.68]
[1765576173371,25.36710345,132.15,132.13,62.78]
[1765576174077,9.48994492,132.14,132.13,62.1]
[1765576175248,17.05767611,132.14,132.13,62.1]
[1765576179278,17.05767611,132.14,132.11,67.99537115]
[1765576179585,17.05767611,132.14,132.12,0.68]
[1765576182376,17.05767611,132.14,132.12,5.89537115]
[1765576184186,17.05767611,132.14,132.12,0.68]
[1765576184482,17.05767611,132.14,132.11,67.99537115]
[1765576184682,0.68,132.13,132.11,67.99537115]
[1765576184879,17.05767611,132.14,132.12,0.68]
[1765576185269,17.05767611,132.14,132.12,62.78]
[1765576188574,17.05767611,132.14,132.12,62.1]
[1765576189195,17.05767611,132.14,132.12,62.78]
[1765576189992,17.05767611,132.14,132.12,67.99537115]
[1765576190293,17.05767611,132.14,132.12,62.78]
[1765576190590,16.37767611,132.14,132.13,5.21537115]
[1765576190796,16.37767611,132.14,132.12,62.1]
[1765576191095,17.07767611,132.14,132.12,67.96537115]
[1765576193708,17.07767611,132.14,132.12,62.1]
[1765576193874,17.10994492,132.13,132.12,62.1]
[1765576194593,17.80994492,132.13,132.12,62.1]
[1765576195004,25.37824886,132.13,132.12,62.1]
[1765576197084,25.37824886,132.13,132.11,0.65]
[1765576198194,25.37824886,132.13,132.1,67.96537115]
[1765576198195,8.80994492,132.12,132.1,67.96537115]
[1765576198394,9.50994492,132.12,132.1,62.75]
[1765576199614,9.50994492,132.12,132.1,0.65]
[1765576199915,8.80994492,132.12,132.11,0.65]
[1765576201014,9.50994492,132.12,132.1,5.86537115]
[1765576201422,8.80994492,132.1,132.07,0.65]
[1765576201715,15.87087664,132.09,132.07,0.65]
[1765576201907,31.96636981,132.15,132.08,5.21537115]
[1765576202102,8.80994492,132.13,132.1,5.21537115]
[1765576202296,8.80994492,132.13,132.1,0.65]
[1765576202502,0.7,132.12,132.1,0.65]
[1765576203013,9.0,132.12,132.1,0.65]
[1765576203216,16.56902998,132.12,132.1,0.65]
[1765576203596,16.56902998,132.12,132.07,5.86537115]
[1765576203597,9.50994492,132.11,132.07,5.86537115]
[1765576203800,9.50994492,132.11,132.07,0.65]
[1765576203801,8.80994492,132.09,132.07,0.65]
[1765576204214,8.80994492,132.09,132.08,0.65]
[1765576205004,16.38054072,132.09,132.08,0.65]
[1765576205414,16.38054072,132.09,132.06,5.21931529]
[1765576205624,17.10994492,132.08,132.07,0.65]
[1765576205826,17.80994492,132.08,132.06,0.65]
[1765576206206,17.10994492,132.08,132.06,5.86931529]
[1765576206618,24.68135074,132.08,132.06,5.21931529]
[1765576206819,24.68135074,132.08,132.06,0.65]
[1765576207128,8.80994492,132.07,132.04,67.31931529]
[1765576207427,8.80994492,132.07,132.05,0.65]
[1765576208223,16.38197578,132.07,132.05,0.65]
[1765576209011,16.38197578,132.07,132.05,5.86931529]
[1765576209318,17.08197578,132.07,132.05,5.86931529]
[1765576209919,17.08197578,132.07,132.05,5.21931529]
[1765576210098,17.08197578,132.07,132.04,62.1]
[1765576210299,17.08197578,132.07,132.04,67.96931529]
[1765576210709,17.08197578,132.07,132.05,0.65]
[1765576211020,8.80994492,132.05,132.04,67.96931529]
[1765576211222,8.80994492,132.05,132.02,5.21931529]
[1765576211415,8.80994492,132.03,132.02,5.86931529]
[1765576213519,8.80994492,132.03,132.02,0.65]
[1765576213717,8.80994492,132.05,132.02,73.18863058]
[1765576214027,8.80994492,132.05,132.04,5.21931529]
[1765576214524,17.10994492,132.06,132.04,5.86931529]
[1765576215026,24.68254694,132.06,132.04,5.86931529]
[1765576215429,24.68254694,132.06,132.03,5.21931529]
[1765576215728,16.57260202,132.06,132.03,5.86931529]
[1765576216024,8.80994492,132.05,132.03,5.86931529]
[1765576216528,8.80994492,132.05,132.03,0.65]
[1765576216529,8.80994492,132.04,132.03,0.65]
[1765576217225,16.38316926,132.05,132.03,0.65]
[1765576217414,8.80994492,132.04,132.02,67.31931529]
[1765576217618,8.80994492,132.04,132.02,67.96931529]
[1765576217814,8.80994492,132.04,132.02,5.86931529]
[1765576218812,16.38357176,132.04,132.02,5.21931529]
[1765576219020,16.38357176,132.04,132.03,0.65]
[1765576220325,7.57312629,132.05,132.03,5.86931529]
[1765576220531,8.80994492,132.04,132.03,0.65]
[1765576220814,8.80994492,132.04,132.02,22.74881516]
[1765576221319,8.80994492,132.04,132.03,0.7]
[1765576222020,8.80994492,132.04,132.03,5.91931529]
[1765576223025,7.56715853,132.15,132.06,13.0470912]
[1765576223232,8.23715853,132.15,132.13,5.21931529]
[1765576223455,8.80994492,132.14,132.13,5.21931529]
[1765576223778,9.47994492,132.14,132.13,5.21931529]
[1765576224046,0.67,132.14,132.13,5.21931529]
[1765576224338,9.47994492,132.14,132.13,5.21931529]
[1765576225816,17.77994492,132.14,132.13,5.21931529]
[1765576228746,17.10994492,132.14,132.13,5.21931529]
[1765576228926,8.80994492,132.15,132.13,5.88931529]
[1765576229258,8.80994492,132.15,132.14,5.21931529]
[1765576229814,9.47994492,132.15,132.12,71.07]
[1765576230019,9.47994492,132.15,132.12,62.77]
[1765576230242,9.47994492,132.15,132.14,5.21931529]
[1765576230835,17.04710345,132.15,132.14,5.21931529]
[1765576237359,17.04710345,132.15,132.12,62.77]
[1765576237550,8.3,132.14,132.12,62.77]
[1765576238645,17.10994492,132.14,132.13,3.33678808]
[1765576240536,24.67767611,132.14,132.13,3.33678808]
[1765576248638,24.67767611,132.14,132.12,0.67]
[1765576248839,24.67767611,132.14,132.13,3.33678808]
[1765576252860,24.67767611,132.14,132.12,62.77]
[1765576253067,9.46994492,132.13,132.12,3.33678808]
[1765576253443,9.46994492,132.13,132.09,0.66]
[1765576253752,8.80994492,132.11,132.08,0.66]
[1765576253937,8.80994492,132.11,132.09,3.33678808]
[1765576254134,8.80994492,132.09,132.07,0.66]
[1765576254339,8.80994492,132.09,132.07,3.33678808]
[1765576254562,9.46994492,132.09,132.06,3.99678808]
[1765576254939,8.80994492,132.07,132.06,3.99678808]
[1765576256856,8.80994492,132.07,132.06,3.33678808]
[1765576257047,17.04168717,132.07,132.04,19.20808434]
[1765576257242,8.80994492,132.05,132.03,0.66]
[1765576257442,8.80994492,132.05,132.03,3.33678808]
[1765576257642,16.38302016,132.05,132.03,3.33678808]
[1765576257865,16.38302016,132.05,132.03,3.99678808]
[1765576259266,16.38302016,132.05,132.03,0.66]
[1765576259856,17.04302016,132.05,132.03,0.66]
[1765576261671,17.04302016,132.05,132.02,3.99678808]
[1765576262172,8.80994492,132.03,132.02,3.33678808]
[1765576262350,8.80994492,132.03,132.02,3.99678808]
[1765576262549,27.16529788,132.05,132.02,3.99678808]
[1765576262550,8.80994492,132.04,132.02,3.99678808]
[1765576262750,8.80994492,132.04,132.03,0.66]
[1765576263373,16.3834075,132.04,132.03,0.66]
[1765576263756,16.3834075,132.04,132.02,0.66]
[1765576264071,24.6834075,132.04,132.02,0.66]
[1765576266870,24.6834075,132.04,132.02,3.99678808]
[1765576267262,25.3434075,132.04,132.02,3.99678808]
[1765576267777,24.6834075,132.04,132.02,3.99678808]
[1765576268463,25.3434075,132.04,132.02,62.76]
[1765576268662,25.3434075,132.04,132.02,62.1]
[1765576269779,25.3434075,132.04,132.02,62.76]
[1765576270478,0.66,132.03,132.02,62.1]
[1765576270678,0.66,132.03,132.0,0.66]
[1765576270679,0.66,132.03,132.0,3.33678808]
[1765576270975,8.3,132.02,132.0,0.66]
[1765576271156,17.10994492,132.02,132.01,0.66]
[1765576271974,17.10994492,132.02,132.01,4.00256892]
[1765576272586,24.68455482,132.02,132.01,4.00256892]
[1765576276885,17.10994492,132.02,132.01,4.00256892]
[1765576280686,24.68455482,132.02,132.01,4.00256892]
[1765576283192,24.68455482,132.02,132.01,66.10256892]
[1765576283686,15.87116898,132.08,132.01,77.02032153]
[1765576283896,8.80994492,132.07,132.05,3.34256892]
[1765576284089,8.80994492,132.07,132.06,3.34256892]
[1765576284688,16.38168717,132.07,132.06,4.04256892]
[1765576289082,0.7,132.13,132.06,28.00454465]
[1765576289291,27.18970915,132.13,132.12,3.34256892]
[1765576289799,8.80994492,132.12,132.11,3.34256892]
[1765576290493,8.80994492,132.12,132.09,0.7]
[1765576290706,8.80994492,132.12,132.11,3.34256892]
[1765576291497,16.37882169,132.12,132.11,3.34256892]
[1765576292277,16.37882169,132.12,132.1,0.7]
[1765576292668,16.37882169,132.12,132.11,3.34256892]
[1765576293414,25.37882169,132.12,132.11,3.34256892]
[1765576293721,25.37882169,132.12,132.06,0.7]
[1765576293895,0.7,132.11,132.07,3.34256892]
[1765576294096,8.80994492,132.09,132.06,0.7]
[1765576294313,8.80994492,132.09,132.07,3.34256892]
[1765576294492,9.50994492,132.09,132.07,3.34256892]
[1765576295895,17.08065545,132.09,132.07,3.34256892]
[1765576296618,17.08065545,132.09,132.07,65.44256892]
[1765576297823,16.38065545,132.09,132.07,62.1]
[1765576298015,9.50994492,132.08,132.07,62.1]
[1765576298898,25.3811139,132.08,132.07,62.1]
[1765576301008,44.30903637,132.08,132.04,67.31922965]
[1765576301325,8.80994492,132.06,132.04,67.31922965]
[1765576301525,17.10994492,132.06,132.04,67.31922965]
[1765576301728,17.80994492,132.06,132.04,67.31922965]
[1765576302428,17.80994492,132.06,132.04,62.1]
[1765576302614,17.08283397,132.05,132.04,62.1]
[1765576303003,16.38283397,132.05,132.04,62.1]
[1765576303402,8.80994492,132.04,132.02,68.01922965]
[1765576304135,16.38343323,132.04,132.02,68.01922965]
[1765576304423,16.38343323,132.04,132.01,7.57513702]
[1765576304424,25.38343323,132.04,132.01,68.01922965]
[1765576304638,25.38343323,132.04,132.01,5.91922965]
[1765576305215,25.38343323,132.04,132.02,5.21922965]
[1765576305528,25.38343323,132.04,132.02,5.22253294]
[1765576305725,25.38343323,132.04,132.01,5.92253294]
[1765576306332,8.80994492,132.02,131.99,68.02253294]
[1765576306508,17.10994492,132.02,131.99,68.02253294]
[1765576306708,17.80994492,132.02,131.99,67.32253294]
[1765576306923,17.80994492,132.02,132.0,0.7]
[1765576307317,17.80994492,132.02,131.99,5.22253294]
[1765576307521,17.80994492,132.02,131.99,5.92253294]
[1765576307935,8.80994492,132.0,131.99,5.92253294]
[1765576309440,8.80994492,132.0,131.98,5.22253294]
[1765576309631,8.80994492,132.0,131.98,5.92253294]
[1765576310125,15.87484679,132.02,131.98,7.57676978]
[1765576310324,16.38423202,132.03,132.01,5.22253294]
[1765576310817,16.38423202,132.03,132.01,5.91253294]
[1765576313359,16.38423202,132.03,132.01,5.22253294]
[1765576313516,16.38423202,132.03,132.02,0.69]
[1765576315336,8.80994492,132.03,132.02,5.91253294]
[1765576315545,8.80994492,132.03,132.02,68.01253294]
[1765576315745,8.80994492,132.03,132.02,62.79]
[1765576315951,8.80994492,132.03,132.02,68.01253294]
[1765576317534,8.80994492,132.03,132.02,5.91253294]
[1765576319332,8.3,132.04,132.02,5.91253294]
[1765576319539,17.10994492,132.04,132.03,5.91253294]
[1765576320453,17.10994492,132.04,132.03,9.61253294]
[1765576321553,17.10994492,132.04,132.03,8.92253294]
[1765576322442,17.10994492,132.04,132.03,9.59253294]
[1765576326748,17.10994492,132.04,132.03,4.37]
[1765576326931,24.6834075,132.04,132.03,4.37]
[1765576327729,24.6834075,132.04,132.03,66.47]
[1765576328053,24.6834075,132.04,132.03,65.8]
[1765576328252,25.3534075,132.04,132.03,65.8]
[1765576330856,24.6834075,132.04,132.03,65.8]
[1765576331063,17.10994492,132.04,132.03,71.69253294]
[1765576331657,17.10994492,132.04,132.03,66.47]
[1765576331844,17.10994492,132.04,132.03,71.69253294]
[1765576333356,8.80994492,132.04,132.03,71.69253294]
[1765576338644,8.80994492,132.04,132.03,71.69101746]
[1765576342878,0.66,132.11,132.03,71.69101746]
[1765576343073,8.96,132.11,132.09,5.22101746]
[1765576343260,8.80994492,132.1,132.08,5.22101746]
[1765576343461,9.46994492,132.1,132.08,5.22101746]
[1765576343869,8.80994492,132.08,132.06,0.67]
[1765576344051,8.80994492,132.08,132.07,5.22101746]
[1765576344253,8.80994492,132.06,132.03,62.77]
[1765576344454,17.10994492,132.06,132.04,5.22101746]
[1765576344764,17.76994492,132.06,132.04,5.22101746]
[1765576346051,25.34278183,132.06,132.04,5.22101746]
[1765576348251,25.34278183,132.06,132.03,5.89101746]
[1765576348450,25.34278183,132.06,132.03,67.99101746]
[1765576348852,25.34278183,132.06,132.04,0.67]
[1765576349048,25.34278183,132.06,132.04,4.37]
[1765576353377,25.34278183,132.06,132.04,3.7]
[1765576353749,24.68278183,132.06,132.04,3.7]
[1765576353950,9.46994492,132.05,132.04,3.7]
[1765576355170,8.80994492,132.04,132.02,67.99101746]
[1765576355373,8.80994492,132.04,132.03,0.67]
[1765576355671,15.87283691,132.06,132.03,5.89101746]
[1765576355873,8.80994492,132.05,132.03,5.89101746]
[1765576356177,8.80994492,132.05,132.04,5.89101746]
[1765576356376,8.3,132.06,132.04,5.89101746]
[1765576356549,17.10994492,132.06,132.05,5.89101746]
[1765576358280,8.80994492,132.05,132.03,5.89101746]
[1765576358459,9.46994492,132.05,132.03,0.67]
[1765576358874,8.80994492,132.05,132.03,0.67]
[1765576359180,8.80994492,132.05,132.04,3.7]
[1765576360484,16.38283397,132.05,132.04,3.7]
[1765576362668,17.04283397,132.05,132.04,3.7]
[1765576363477,16.38283397,132.05,132.04,3.7]
[1765576364462,17.04283397,132.05,132.04,3.7]
[1765576364659,39.31725749,132.05,132.02,62.1]
[1765576364863,39.31725749,132.05,132.0,0.67]
[1765576364864,8.96,132.04,132.0,0.67]
[1765576365293,8.80994492,132.02,132.0,0.67]
[1765576365591,8.80994492,132.02,132.0,4.01220088]
[1765576365787,8.80994492,132.02,132.01,0.67]
[1765576367986,16.3845972,132.02,132.0,3.34220088]
[1765576368289,16.3845972,132.02,132.01,3.7]
[1765576368863,16.3845972,132.02,132.01,4.37]
[1765576369059,16.3845972,132.02,132.01,3.7]
[1765576374476,15.8740071,132.04,132.01,4.42]
[1765576374780,8.80994492,132.03,132.01,4.42]
[1765576375296,9.52994492,132.03,132.01,66.52]
[1765576376579,17.1040911,132.03,132.01,66.52]
[1765576376984,16.3840911,132.03,132.01,69.14330786]
[1765576377181,8.80994492,132.03,132.02,0.72]
[1765576381194,8.80994492,132.03,132.02,62.82]
[1765576382770,8.80994492,132.03,132.02,66.16330786]
[1765576383397,16.38398112,132.03,132.02,66.16330786]
[1765576388585,15.87359286,132.04,132.02,66.16330786]
[1765576388786,24.68353778,132.04,132.03,4.06330786]
[1765576389091,24.68353778,132.04,132.03,66.16330786]
[1765576390297,24.68353778,132.04,132.03,62.82]
[1765576390490,24.68353778,132.04,132.03,66.16330786]
[1765576391192,24.68353778,132.04,132.03,62.1]
[1765576391407,24.68353778,132.04,132.03,62.82]
[1765576392298,24.68353778,132.04,132.03,62.1]
[1765576392991,24.68353778,132.04,132.03,62.82]
[1765576396912,24.68353778,132.04,132.03,62.1]
[1765576397728,25.40353778,132.04,132.03,62.1]
[1765576399105,16.384194,132.03,132.01,4.06330786]
[1765576399916,16.384194,132.03,132.02,0.72]
[1765576401210,16.384194,132.03,132.0,62.1]
[1765576401413,17.074194,132.03,132.01,3.34330786]
[1765576401618,17.074194,132.03,132.01,4.01330786]
[1765576401819,16.384194,132.03,132.01,7.71330786]
[1765576403893,16.384194,132.03,132.01,7.04330786]
[1765576404115,9.49994492,132.02,132.01,3.7]
[1765576404299,8.80994492,132.01,132.0,66.11330786]
[1765576405623,16.3847482,132.02,132.0,66.1131313]
[1765576405792,16.3847482,132.02,132.01,4.0031313]
[1765576406222,16.3847482,132.02,132.01,3.3431313]
[1765576407619,25.3347482,132.02,132.0,62.1]
[1765576408626,24.6847482,132.02,132.0,62.1]
[1765576408810,0.65,132.01,131.98,3.3431313]
[1765576409796,8.80994492,131.99,131.98,4.0031313]
[1765576410016,8.80994492,131.99,131.98,66.1031313]
[1765576410219,8.80994492,131.99,131.98,62.76]
[1765576410399,8.80994492,131.99,131.98,66.1031313]
[1765576413310,16.38627646,131.99,131.98,62.1]
[1765576413507,17.03627646,131.99,131.97,0.2]
[1765576414123,17.10994492,131.98,131.97,0.2]
[1765576414533,17.10994492,131.98,131.97,0.86]
[1765576415406,24.68685051,131.98,131.97,0.86]
[1765576415835,24.68685051,131.98,131.97,0.2]
[1765576416336,25.33685051,131.98,131.97,0.2]
[1765576419418,24.68685051,131.98,131.97,0.2]
[1765576419618,25.33685051,131.98,131.97,0.2]
[1765576422837,43.61267049,131.98,131.97,0.2]
[1765576423239,9.09426806,131.97,131.92,0.2]
[1765576423544,14.17872878,131.96,131.92,0.2]
[1765576423921,8.80994492,131.94,131.92,0.2]
[1765576424123,17.10994492,131.94,131.92,0.2]
[1765576424316,17.75994492,131.94,131.92,0.2]
[1765576424720,17.03972207,131.93,131.92,0.2]
[1765576426238,22.55277399,131.93,131.92,0.2]
[1765576426618,17.32404521,131.93,131.92,0.2]
[1765576427027,22.55277399,131.93,131.92,0.2]
[1765576430838,17.32404521,131.93,131.92,0.2]
[1765576431557,16.38972207,131.93,131.92,0.2]
[1765576434354,17.06972207,131.93,131.92,0.2]
[1765576434529,16.38972207,131.93,131.92,0.2]
[1765576435353,17.06972207,131.93,131.92,0.2]
[1765576442241,16.38972207,131.93,131.92,0.91]
[1765576442442,16.38972207,131.93,131.92,0.2]
[1765576442642,17.06972207,131.93,131.92,0.2]
[1765576445065,17.35404521,131.93,131.92,0.2]
[1765576445443,22.4436504,131.93,131.92,0.2]
[1765576446741,17.21188364,131.93,131.92,0.2]
[1765576448468,17.35404521,131.93,131.92,0.2]
[1765576449152,16.38972207,131.93,131.92,0.2]
[1765576454372,16.38972207,131.93,131.92,0.91]
[1765576454575,8.80994492,131.93,131.92,0.91]
[1765576454875,8.80994492,131.93,131.92,6.14176676]
[1765576455245,8.80994492,131.93,131.92,0.91]
[1765576458355,8.80994492,131.93,131.92,63.01]
[1765576458773,16.38972207,131.93,131.92,62.3]
[1765576458958,16.38972207,131.93,131.92,63.01]
[1765576461985,17.06972207,131.93,131.92,62.3]
[1765576462169,16.38972207,131.93,131.92,62.3]
[1765576463986,16.38972207,131.93,131.92,0.2]
[1765576464656,17.06972207,131.93,131.92,0.2]
[1765576465055,22.50148883,131.93,131.92,0.2]
[1765576466162,17.06972207,131.93,131.92,0.2]
[1765576466360,16.38972207,131.93,131.92,0.2]
[1765576466562,16.38972207,131.93,131.92,0.92]
[1765576467086,16.38972207,131.93,131.92,0.2]
[1765576467791,17.09972207,131.93,131.92,0.2]
[1765576468173,16.38972207,131.93,131.92,0.92]
[1765576472588,16.38972207,131.93,131.92,0.2]
[1765576477015,16.38972207,131.93,131.92,0.92]
[1765576478625,9.01,131.94,131.92,0.92]
[1765576478626,8.3,131.94,131.92,68.25154461]
[1765576478791,17.10994492,131.94,131.93,5.95154461]
[1765576479180,24.68914758,131.94,131.93,5.95154461]
[1765576482221,24.68914758,131.94,131.93,68.05154461]
[1765576483516,24.68914758,131.94,131.93,62.82]
[1765576483695,24.68914758,131.94,131.93,68.05154461]